bitfinex/quotes_SOLUSD_20250624
["timestamp","ask_amount","ask_price","bid_price","bid_amount"]
[1750759990821,20.87,144.04,143.96,6.5015]
[1750759991427,167.47,144.04,143.96,6.5015]
[1750759992923,5.07393279,144.03,143.96,6.5015]
[1750759993335,167.47,144.04,143.96,6.5015]
[1750759996016,167.47,144.04,143.95,1.619]
[1750759996214,173.9452,144.04,143.95,1.619]
[1750759998529,167.47,144.04,143.95,1.619]
[1750760003835,20.87,144.02,143.95,1.619]
[1750760004022,167.47,144.02,143.95,1.619]
[1750760004213,20.87,144.0,143.95,1.619]
[1750760005240,20.87,144.01,143.95,1.619]
[1750760005441,25.94780725,144.0,143.95,1.619]
[1750760005625,20.87,144.0,143.95,1.619]
[1750760006737,146.6,144.02,143.95,1.619]
[1750760006738,20.87,144.01,143.95,1.619]
[1750760006942,25.95122346,144.0,143.95,1.619]
[1750760007140,20.87,144.0,143.95,1.619]
[1750760007639,25.95118276,143.99,143.95,1.619]
[1750760007819,5.08118276,143.98,143.92,6.0682]
[1750760008018,25.95118276,143.98,143.92,6.0682]
[1750760008225,20.87,143.98,143.92,6.0682]
[1750760009130,24.40389563,143.98,143.92,6.0682]
[1750760010842,5.08046967,143.97,143.92,6.0682]
[1750760011431,172.55046967,143.97,143.92,6.0682]
[1750760011745,167.47,143.97,143.92,6.0682]
[1750760013433,5.07979146,143.96,143.91,1.6578]
[1750760013636,5.07979146,143.95,143.91,1.6578]
[1750760013836,20.87,143.96,143.91,1.6578]
[1750760014136,5.07722131,143.95,143.89,65.72197124]
[1750760015054,5.07722131,143.94,143.89,65.72197124]
[1750760015341,5.07696289,143.94,143.89,65.72197124]
[1750760016442,167.47,143.95,143.89,65.72197124]
[1750760017221,5.04957553,143.94,143.89,65.72197124]
[1750760017447,146.6,143.95,143.89,65.72197124]
[1750760019647,167.47,143.95,143.89,65.72197124]
[1750760020652,146.6,143.95,143.89,65.72197124]
[1750760022956,5.05142787,143.94,143.89,65.72197124]
[1750760023355,5.05142787,143.94,143.88,7.5825]
[1750760023556,20.87,143.93,143.88,7.5825]
[1750760023744,146.6,143.94,143.88,7.5825]
[1750760030332,3.53389563,143.98,143.88,7.5825]
[1750760030529,5.04936702,144.0,143.88,7.5825]
[1750760030758,25.91936702,144.0,143.88,7.5825]
[1750760031062,5.04936702,143.99,143.89,1.6461]
[1750760031444,146.6,144.01,143.91,1.6461]
[1750760034538,5.0491193,144.0,143.91,1.6461]
[1750760035238,5.05024613,144.0,143.91,1.6461]
[1750760035647,151.65024613,144.0,143.91,1.6461]
[1750760035835,5.05017605,143.99,143.91,1.6461]
[1750760036038,146.6,144.0,143.91,1.6461]
[1750760037253,5.05256643,143.99,143.91,1.6461]
[1750760037861,146.6,144.0,143.91,1.6461]
[1750760038444,6.2354,143.98,143.82,7.7891]
[1750760038653,1.5872,143.95,143.82,7.7891]
[1750760038848,20.87,143.93,143.82,7.7891]
[1750760039055,25.92140384,143.92,143.82,7.7891]
[1750760039244,5.05140384,143.91,143.82,7.7891]
[1750760039440,5.05140384,143.9,143.82,7.7891]
[1750760039636,5.05140384,143.91,143.82,7.7891]
[1750760039841,5.05140384,143.9,143.82,7.7891]
[1750760040062,5.05140384,143.91,143.82,7.7891]
[1750760040263,5.05140384,143.9,143.82,7.7891]
[1750760040462,25.92140384,143.92,143.82,7.7891]
[1750760040665,5.05140384,143.91,143.82,7.7891]
[1750760040959,5.04798943,143.91,143.82,7.7891]
[1750760041162,16.63911873,143.91,143.82,7.7891]
[1750760041540,11.5911293,143.91,143.82,7.7891]
[1750760042452,11.5911293,143.91,143.83,1.572]
[1750760042965,10.28691701,143.94,143.83,1.572]
[1750760044938,1.542,143.92,143.8,8.1253]
[1750760045142,25.91937928,143.91,143.8,8.1253]
[1750760045364,5.04937928,143.9,143.8,8.1253]
[1750760045570,5.04558349,143.92,143.8,8.1253]
[1750760046046,5.04558349,143.91,143.8,8.1253]
[1750760046250,20.87,143.93,143.8,8.1253]
[1750760046251,5.04558349,143.92,143.8,8.1253]
[1750760047259,5.05276176,143.92,143.8,8.1253]
[1750760047970,5.05276176,143.91,143.8,8.1253]
[1750760048265,5.05276176,143.92,143.8,8.1253]
[1750760048475,5.05276176,143.91,143.8,8.1253]
[1750760048649,5.05276176,143.92,143.8,8.1253]
[1750760048969,5.05276176,143.91,143.8,8.1253]
[1750760049164,5.05276176,143.92,143.8,8.1253]
[1750760049355,5.05276176,143.91,143.8,8.1253]
[1750760049556,5.05276176,143.92,143.8,8.1253]
[1750760050556,5.05276176,143.92,143.81,1.5185]
[1750760050758,5.05276176,143.92,143.82,6.2]
[1750760054049,5.05276176,143.93,143.82,6.2]
[1750760054670,5.05276176,143.92,143.82,6.2]
[1750760054869,5.05276176,143.93,143.82,6.2]
[1750760055074,5.05276176,143.92,143.82,6.2]
[1750760055259,5.05276176,143.93,143.82,6.2]
[1750760055449,5.05276176,143.92,143.82,6.2]
[1750760055645,5.05276176,143.93,143.82,6.2]
[1750760055859,5.05276176,143.92,143.82,6.2]
[1750760056065,5.05276176,143.93,143.82,6.2]
[1750760056258,5.05276176,143.92,143.82,6.2]
[1750760056458,5.05276176,143.93,143.82,6.2]
[1750760056657,5.05276176,143.92,143.82,6.2]
[1750760056863,5.05276176,143.93,143.82,6.2]
[1750760057153,5.0434775,143.92,143.82,6.2]
[1750760057352,5.0434775,143.93,143.82,6.2]
[1750760057550,5.0434143,143.92,143.82,6.2]
[1750760057848,5.0434143,143.93,143.82,6.2]
[1750760058177,5.0434143,143.92,143.82,6.2]
[1750760058474,5.0434143,143.93,143.82,6.2]
[1750760058674,5.0434143,143.92,143.82,6.2]
[1750760058880,5.0434143,143.93,143.82,6.2]
[1750760059052,5.0434143,143.92,143.82,6.2]
[1750760059249,5.0434143,143.93,143.84,1.5041]
[1750760059678,156.88691701,143.94,143.84,1.5041]
[1750760060763,20.87,143.92,143.84,1.5041]
[1750760060962,25.91622605,143.91,143.84,1.5041]
[1750760061274,20.87,143.91,143.84,1.5041]
[1750760062057,20.87,143.92,143.84,1.5041]
[1750760062350,25.91544784,143.91,143.84,1.5041]
[1750760062550,5.04544784,143.9,143.84,1.5041]
[1750760062774,20.87,143.91,143.84,1.5041]
[1750760063275,25.91314813,143.9,143.84,1.5041]
[1750760063470,20.87,143.9,143.84,1.5041]
[1750760064055,5.04304811,143.89,143.81,1.5712]
[1750760064256,25.91304811,143.88,143.81,1.5712]
[1750760064463,25.91304811,143.87,143.81,1.5712]
[1750760064673,20.87,143.87,143.81,1.5712]
[1750760065063,5.03896162,143.86,143.81,1.5712]
[1750760065456,20.87,143.88,143.81,1.5712]
[1750760065653,25.90863873,143.87,143.81,1.5712]
[1750760065858,20.87,143.87,143.81,1.5712]
[1750760066266,146.6,143.89,143.81,1.5712]
[1750760066467,5.04092695,143.88,143.81,1.5712]
[1750760067079,167.47,143.89,143.81,1.5712]
[1750760068582,146.6,143.89,143.81,1.5712]
[1750760072779,5.03964533,143.88,143.81,1.5712]
[1750760074081,146.6,143.89,143.81,1.5712]
[1750760075991,5.03989173,143.88,143.81,1.5712]
[1750760076188,146.6,143.89,143.81,1.5712]
[1750760076987,5.04209299,143.88,143.81,1.5712]
[1750760078689,20.87,143.87,143.81,1.5712]
[1750760078889,167.47,143.89,143.81,1.5712]
[1750760079091,5.04636243,143.88,143.81,1.5712]
[1750760079269,5.04653623,143.88,143.81,1.5712]
[1750760079698,167.47,143.89,143.81,1.5712]
[1750760079873,5.04886549,143.88,143.81,1.5712]
[1750760081791,5.04886549,143.87,143.81,1.5712]
[1750760081996,5.04886549,143.88,143.81,1.5712]
[1750760082194,5.04886549,143.87,143.81,1.5712]
[1750760082398,5.04886549,143.88,143.81,1.5712]
[1750760082700,5.05541283,143.87,143.81,1.5712]
[1750760082875,5.05541283,143.88,143.81,1.5712]
[1750760083075,5.05541283,143.87,143.81,1.5712]
[1750760083275,5.05541283,143.88,143.81,1.5712]
[1750760083594,25.92541283,143.87,143.79,6.3729]
[1750760083773,25.92541283,143.86,143.78,1.4570541]
[1750760083975,25.92541283,143.85,143.78,1.4570541]
[1750760084174,25.92541283,143.84,143.78,1.4570541]
[1750760084374,5.05541283,143.83,143.78,1.4570541]
[1750760084593,5.05562672,143.82,143.78,1.4570541]
[1750760084788,5.05562672,143.83,143.78,1.4570541]
[1750760084987,5.05562672,143.82,143.78,1.4570541]
[1750760085197,5.05562672,143.83,143.78,1.4570541]
[1750760085397,5.05562672,143.82,143.78,1.4570541]
[1750760085696,25.92581494,143.84,143.78,1.4570541]
[1750760085901,5.05581494,143.83,143.78,1.4570541]
[1750760086100,5.05581494,143.82,143.78,1.4570541]
[1750760086296,5.05581494,143.83,143.78,1.4570541]
[1750760086681,5.05581494,143.85,143.78,1.4570541]
[1750760086882,5.05581494,143.84,143.78,1.4570541]
[1750760087097,5.05581494,143.83,143.78,1.4570541]
[1750760087302,5.05581494,143.85,143.78,1.4570541]
[1750760087504,5.05581494,143.84,143.78,1.4570541]
[1750760087696,5.05581494,143.83,143.78,1.4570541]
[1750760087892,5.05581494,143.85,143.78,1.4570541]
[1750760088096,5.05581494,143.84,143.78,1.4570541]
[1750760088399,5.05867455,143.83,143.78,1.4570541]
[1750760088591,5.05867455,143.85,143.78,1.4570541]
[1750760088790,5.05867455,143.84,143.78,1.4570541]
[1750760088993,5.05867455,143.83,143.78,1.4570541]
[1750760089193,5.05867455,143.85,143.78,1.4570541]
[1750760089409,5.05867455,143.84,143.78,1.4570541]
[1750760089704,5.05867455,143.83,143.78,1.4570541]
[1750760089890,5.05867455,143.85,143.78,1.4570541]
[1750760090084,5.05867455,143.84,143.78,1.4570541]
[1750760090286,5.05867455,143.83,143.78,1.4570541]
[1750760090600,5.05867455,143.85,143.78,1.4570541]
[1750760090804,5.05867455,143.84,143.78,1.4570541]
[1750760091004,5.05867455,143.83,143.78,1.4570541]
[1750760091203,5.05934967,143.85,143.78,1.4570541]
[1750760091383,5.05934967,143.84,143.78,1.4570541]
[1750760091585,5.05945559,143.83,143.78,1.4570541]
[1750760091785,5.05945559,143.85,143.78,1.4570541]
[1750760092000,5.05945559,143.84,143.78,1.4570541]
[1750760092194,9.16341932,143.88,143.78,1.4570541]
[1750760092408,5.06006511,143.87,143.79,7.8351]
[1750760093509,5.06006511,143.86,143.79,7.8351]
[1750760093713,5.06006511,143.87,143.79,7.8351]
[1750760093898,9.16341932,143.88,143.79,7.8351]
[1750760094103,13.55716257,143.87,143.79,7.8351]
[1750760094409,5.06230862,143.86,143.79,7.8351]
[1750760096000,8.49485395,143.87,143.79,7.8351]
[1750760096705,13.5590028,143.87,143.79,7.8351]
[1750760096892,8.49485395,143.87,143.79,7.8351]
[1750760097494,13.5588599,143.87,143.79,7.8351]
[1750760097687,8.49485395,143.87,143.79,7.8351]
[1750760098297,13.56043378,143.87,143.79,7.8351]
[1750760098498,8.49485395,143.87,143.79,7.8351]
[1750760099292,13.56044148,143.87,143.79,7.8351]
[1750760099496,8.49485395,143.87,143.79,7.8351]
[1750760100293,8.49485395,143.87,143.8,1.6074]
[1750760100493,8.49485395,143.87,143.78,1.4570541]
[1750760100494,8.49485395,143.87,143.82,1.5537]
[1750760110319,167.47,143.92,143.82,1.5537]
[1750760110508,5.07084624,143.91,143.82,1.5537]
[1750760110710,5.07084624,143.9,143.82,1.5537]
[1750760110917,5.07084624,143.89,143.82,1.5537]
[1750760111124,5.07084624,143.88,143.82,1.5537]
[1750760111334,167.47,143.92,143.82,1.5537]
[1750760111533,5.06904529,143.91,143.82,1.5537]
[1750760111730,5.06904529,143.9,143.82,1.5537]
[1750760112027,5.06904529,143.89,143.82,1.5537]
[1750760112219,146.6,143.92,143.82,1.5537]
[1750760112423,5.06919959,143.91,143.82,1.5537]
[1750760112735,5.06919959,143.9,143.82,1.5537]
[1750760112914,146.6,143.92,143.82,1.5537]
[1750760113227,5.06793041,143.91,143.82,1.5537]
[1750760113411,5.06793041,143.9,143.82,1.5537]
[1750760113613,5.06793041,143.89,143.82,1.5537]
[1750760113917,146.6,143.92,143.82,1.5537]
[1750760114098,5.06656011,143.91,143.82,1.5537]
[1750760114295,5.06656011,143.9,143.82,1.5537]
[1750760114510,5.06656011,143.89,143.82,1.5537]
[1750760114704,5.06656011,143.88,143.82,1.5537]
[1750760114910,167.47,143.92,143.82,1.5537]
[1750760115110,25.93752639,143.91,143.82,1.5537]
[1750760115306,5.06752639,143.9,143.82,1.5537]
[1750760115514,5.06752639,143.89,143.82,1.5537]
[1750760115710,20.87,143.91,143.82,1.5537]
[1750760115925,5.06585073,143.9,143.82,1.5537]
[1750760116115,5.06585073,143.89,143.82,1.5537]
[1750760116315,5.06585073,143.88,143.82,1.5537]
[1750760116527,20.87,143.91,143.82,1.5537]
[1750760116734,5.06530005,143.9,143.82,1.5537]
[1750760116943,5.06530005,143.89,143.82,1.5537]
[1750760117118,5.06530005,143.88,143.82,1.5537]
[1750760117316,20.87,143.91,143.82,1.5537]
[1750760117516,5.06322321,143.9,143.82,1.5537]
[1750760117832,5.06322321,143.89,143.82,1.5537]
[1750760118015,5.06322321,143.88,143.82,1.5537]
[1750760118214,20.87,143.91,143.82,1.5537]
[1750760118418,5.06426921,143.9,143.82,1.5537]
[1750760118620,5.06426921,143.89,143.82,1.5537]
[1750760118831,5.06426921,143.88,143.82,1.5537]
[1750760119037,20.87,143.91,143.82,1.5537]
[1750760119235,25.93413572,143.9,143.82,1.5537]
[1750760119433,5.06413572,143.89,143.82,1.5537]
[1750760119637,5.06413572,143.88,143.82,1.5537]
[1750760119834,20.87,143.9,143.82,1.5537]
[1750760120022,5.06381588,143.89,143.82,1.5537]
[1750760120209,146.6,143.92,143.82,1.5537]
[1750760120210,5.06381588,143.88,143.82,1.5537]
[1750760120414,5.06339153,143.87,143.82,1.5537]
[1750760120637,20.87,143.9,143.82,1.5537]
[1750760120841,5.06226667,143.89,143.82,1.5537]
[1750760121147,5.06226667,143.88,143.82,1.5537]
[1750760121322,5.06226667,143.87,143.82,1.5537]
[1750760121529,5.06117828,143.86,143.82,1.5537]
[1750760121732,20.87,143.9,143.82,1.5537]
[1750760121933,25.93107594,143.89,143.82,1.5537]
[1750760122141,25.93107594,143.88,143.78,3.0223541]
[1750760122320,25.93107594,143.87,143.78,3.0223541]
[1750760122520,5.05786894,143.86,143.78,3.0223541]
[1750760122719,5.05786894,143.85,143.78,3.0223541]
[1750760122931,20.87,143.87,143.78,3.0223541]
[1750760123222,5.05799931,143.86,143.78,3.0223541]
[1750760123424,5.05799931,143.85,143.78,3.0223541]
[1750760123625,20.87,143.87,143.78,3.0223541]
[1750760123830,20.87,143.85,143.78,3.0223541]
[1750760124035,5.05829946,143.84,143.78,3.0223541]
[1750760124245,5.05827181,143.83,143.78,3.0223541]
[1750760124444,20.87,143.85,143.78,3.0223541]
[1750760124661,5.0575055,143.84,143.78,3.0223541]
[1750760124836,5.05759842,143.83,143.78,3.0223541]
[1750760125147,20.87,143.85,143.78,3.0223541]
[1750760125357,5.05635441,143.84,143.78,3.0223541]
[1750760125521,5.05635441,143.83,143.78,3.0223541]
[1750760125721,5.05635441,143.82,143.78,3.0223541]
[1750760125922,5.0560248,143.84,143.78,3.0223541]
[1750760126152,5.0560248,143.83,143.78,3.0223541]
[1750760126466,5.0560248,143.82,143.78,1.4570541]
[1750760126755,5.05823951,143.81,143.78,1.4570541]
[1750760126995,20.87,143.83,143.78,1.4570541]
[1750760127135,5.05812778,143.82,143.78,1.4570541]
[1750760127343,5.05812778,143.81,143.78,1.4570541]
[1750760127556,20.87,143.82,143.78,1.4570541]
[1750760127855,5.05846372,143.81,143.78,1.4570541]
[1750760128036,5.06060322,143.8,143.78,1.4570541]
[1750760128235,25.93060322,143.81,143.78,1.4570541]
[1750760128458,5.06060322,143.8,143.78,1.4570541]
[1750760128627,20.87,143.84,143.78,1.4570541]
[1750760128828,25.92947065,143.83,143.78,1.4570541]
[1750760129045,5.05947065,143.82,143.78,1.4570541]
[1750760129248,5.05947065,143.81,143.78,1.4570541]
[1750760129432,5.06155198,143.8,143.78,1.4570541]
[1750760129637,5.06132189,143.79,143.78,1.4570541]
[1750760129837,25.93132189,143.82,143.78,1.4570541]
[1750760130057,5.06166546,143.81,143.78,1.4570541]
[1750760130258,5.06166546,143.8,143.78,1.4570541]
[1750760130428,5.06166546,143.79,143.78,1.4570541]
[1750760130743,146.6,143.79,143.78,1.4570541]
[1750760130947,151.66166546,143.79,143.78,1.4570541]
[1750760131436,9.0217017,143.81,143.78,1.4570541]
[1750760131632,14.08002833,143.81,143.78,1.4570541]
[1750760132350,9.0217017,143.81,143.78,1.4570541]
[1750760132844,14.07831294,143.81,143.78,1.4570541]
[1750760133025,9.0217017,143.81,143.78,1.4570541]
[1750760138663,20.87,143.8,143.78,1.4570541]
[1750760138851,9.0217017,143.81,143.78,1.4570541]
[1750760150780,150.14746282,143.83,143.78,1.4570541]
[1750760154486,5.05268794,143.82,143.78,1.4570541]
[1750760154883,7.95654419,143.85,143.78,1.4570541]
[1750760155180,13.01055236,143.85,143.78,1.4570541]
[1750760155378,7.95654419,143.85,143.78,1.4570541]
[1750760156682,5.05439894,143.84,143.78,1.4570541]
[1750760157585,11.35339103,143.85,143.78,1.4570541]
[1750760157790,16.40778997,143.85,143.78,1.4570541]
[1750760157980,11.35339103,143.85,143.78,1.4570541]
[1750760158670,16.40792919,143.85,143.78,1.4570541]
[1750760158870,11.35339103,143.85,143.78,1.4570541]
[1750760159278,7.95654419,143.85,143.78,1.4570541]
[1750760159665,7.95654419,143.85,143.79,6.261]
[1750760159864,13.01192018,143.85,143.79,6.261]
[1750760160466,7.95654419,143.85,143.79,6.261]
[1750760162188,5.05919046,143.84,143.79,6.261]
[1750760162759,5.05919046,143.83,143.79,6.261]
[1750760162958,5.05919046,143.84,143.79,6.261]
[1750760163183,5.06256774,143.83,143.79,6.261]
[1750760163378,5.06256774,143.84,143.79,6.261]
[1750760163581,5.06256774,143.83,143.79,6.261]
[1750760163777,5.06256774,143.84,143.79,6.261]
[1750760163976,5.06256774,143.83,143.79,6.261]
[1750760164182,5.06256774,143.84,143.79,6.261]
[1750760164506,5.06256774,143.83,143.79,6.261]
[1750760164691,5.06256774,143.84,143.79,6.261]
[1750760164991,5.06256774,143.83,143.79,6.261]
[1750760165290,5.06256774,143.84,143.79,6.261]
[1750760165489,7.95654419,143.85,143.79,6.261]
[1750760165667,5.0701178,143.84,143.79,6.261]
[1750760165863,5.0701178,143.83,143.79,6.261]
[1750760166069,7.95654419,143.85,143.79,6.261]
[1750760166578,5.06933738,143.84,143.79,6.261]
[1750760166892,5.06933738,143.83,143.79,6.261]
[1750760167083,7.95654419,143.85,143.79,6.261]
[1750760167286,5.06952047,143.84,143.79,6.261]
[1750760167494,5.06952047,143.83,143.78,1.4570541]
[1750760167667,5.06952047,143.82,143.78,1.4570541]
[1750760167873,5.06952047,143.81,143.78,1.4570541]
[1750760168073,5.07069771,143.84,143.78,1.4570541]
[1750760168373,5.07069771,143.83,143.78,1.4570541]
[1750760168574,5.07069771,143.82,143.78,1.4570541]
[1750760168774,5.07069771,143.81,143.78,1.4570541]
[1750760168983,154.55654419,143.85,143.78,1.4570541]
[1750760169303,5.07267265,143.84,143.78,1.4570541]
[1750760169483,5.07267265,143.83,143.78,1.4570541]
[1750760169798,5.07416686,143.82,143.78,1.4570541]
[1750760169991,5.07416686,143.81,143.78,1.4570541]
[1750760170176,154.55654419,143.85,143.78,1.4570541]
[1750760170474,5.07399779,143.84,143.78,1.4570541]
[1750760170666,5.07399779,143.83,143.78,1.4570541]
[1750760170866,5.07399779,143.82,143.78,1.4570541]
[1750760171088,154.55654419,143.85,143.78,1.4570541]
[1750760171089,5.07399779,143.81,143.78,1.4570541]
[1750760171277,5.07320789,143.84,143.78,1.4570541]
[1750760171490,5.07320789,143.83,143.78,1.4570541]
[1750760171794,5.07320789,143.82,143.78,1.4570541]
[1750760171977,154.55654419,143.85,143.78,1.4570541]
[1750760172171,5.07160877,143.84,143.78,1.4570541]
[1750760172371,5.07160877,143.83,143.78,1.4570541]
[1750760172594,5.07160877,143.82,143.78,1.4570541]
[1750760172895,5.07160877,143.81,143.78,1.4570541]
[1750760173100,154.55654419,143.85,143.78,1.4570541]
[1750760173284,5.07532223,143.84,143.78,1.4570541]
[1750760173484,5.07532223,143.83,143.78,1.4570541]
[1750760173685,5.07532223,143.82,143.78,1.4570541]
[1750760173880,5.07532223,143.81,143.78,1.4570541]
[1750760174174,154.55654419,143.85,143.78,1.4570541]
[1750760174373,5.07612637,143.84,143.78,1.4570541]
[1750760174672,5.07612637,143.83,143.78,1.4570541]
[1750760174872,5.07612637,143.82,143.78,1.4570541]
[1750760175182,5.07612637,143.81,143.78,1.4570541]
[1750760175382,154.55654419,143.85,143.78,1.4570541]
[1750760175594,5.07573048,143.84,143.78,1.4570541]
[1750760175796,154.55654419,143.85,143.78,1.4570541]
[1750760175797,5.07573048,143.83,143.78,1.4570541]
[1750760175998,5.07573048,143.82,143.78,1.4570541]
[1750760176184,5.07573048,143.81,143.78,1.4570541]
[1750760176386,154.55654419,143.85,143.78,1.4570541]
[1750760176586,5.07796548,143.84,143.78,1.4570541]
[1750760176780,5.07796548,143.83,143.78,1.4570541]
[1750760177002,5.07796548,143.82,143.78,1.4570541]
[1750760177183,5.07796548,143.81,143.78,1.4570541]
[1750760177493,5.07796548,143.8,143.78,1.4570541]
[1750760177697,5.07796548,143.79,143.78,1.4570541]
[1750760178402,5.07554319,143.79,143.78,1.4570541]
[1750760179396,172.55554319,143.79,143.78,1.4570541]
[1750760179699,177.62867444,143.79,143.78,1.4570541]
[1750760181703,172.55313125,143.79,143.78,1.4570541]
[1750760181888,177.61977891,143.79,143.78,1.4570541]
[1750760183495,177.61693055,143.79,143.78,1.4570541]
[1750760183703,156.73693055,143.79,143.78,1.4570541]
[1750760184205,151.66563912,143.79,143.78,1.4570541]
[1750760184410,5.06563912,143.79,143.78,1.4570541]
[1750760184575,5.06563912,143.82,143.78,1.4570541]
[1750760184881,5.06563912,143.81,143.78,1.4570541]
[1750760185202,5.06563912,143.8,143.78,1.4570541]
[1750760185402,5.06563912,143.79,143.78,1.4570541]
[1750760185601,5.06563912,143.82,143.78,1.4570541]
[1750760185789,5.06563912,143.81,143.78,1.4570541]
[1750760185991,5.06563912,143.8,143.78,1.4570541]
[1750760186195,6.65588184,143.83,143.78,1.4570541]
[1750760186196,5.06563912,143.79,143.78,1.4570541]
[1750760186502,5.06563912,143.82,143.78,1.4570541]
[1750760186683,5.06563912,143.81,143.78,1.4570541]
[1750760186885,5.06563912,143.8,143.78,1.4570541]
[1750760187103,5.06563912,143.79,143.78,1.4570541]
[1750760187297,5.06563912,143.82,143.78,1.4570541]
[1750760187483,5.06563912,143.81,143.78,1.4570541]
[1750760187804,5.06563912,143.8,143.78,1.4570541]
[1750760188004,5.06563912,143.79,143.78,1.4570541]
[1750760188201,5.06563912,143.82,143.78,1.4570541]
[1750760188383,5.06563912,143.81,143.78,1.4570541]
[1750760188583,5.06563912,143.8,143.78,1.4570541]
[1750760188783,5.06563912,143.79,143.78,1.4570541]
[1750760188997,5.06563912,143.82,143.78,1.4570541]
[1750760189305,5.06563912,143.81,143.78,1.4570541]
[1750760189492,5.06563912,143.8,143.78,1.4570541]
[1750760189685,5.06563912,143.79,143.78,1.4570541]
[1750760190190,151.66563912,143.79,143.78,1.4570541]
[1750760190391,156.73492096,143.79,143.78,1.4570541]
[1750760190777,151.66563912,143.79,143.78,1.4570541]
[1750760190984,156.73209503,143.79,143.78,1.4570541]
[1750760191289,151.66563912,143.79,143.78,1.4570541]
[1750760193097,151.66084756,143.79,143.78,1.4570541]
[1750760193708,172.54084756,143.79,143.78,1.4570541]
[1750760195304,167.48,143.79,143.78,1.4570541]
[1750760195609,172.54256326,143.79,143.78,1.4570541]
[1750760201110,172.53586483,143.79,143.78,1.4570541]
[1750760202612,172.53584658,143.79,143.78,1.4570541]
[1750760203100,167.48,143.79,143.78,1.4570541]
[1750760203302,172.53579176,143.79,143.78,1.4570541]
[1750760206308,146.6,143.77,143.67,1.6085]
[1750760206511,30.99277319,143.76,143.64,8.1114]
[1750760206699,20.88,143.74,143.64,8.1114]
[1750760206894,20.88,143.72,143.64,8.1114]
[1750760207095,25.93275993,143.71,143.64,8.1114]
[1750760207302,20.88,143.71,143.64,8.1114]
[1750760207501,5.0539826,143.7,143.64,8.1114]
[1750760208314,5.0539826,143.69,143.58,7.73]
[1750760208520,20.88,143.68,143.58,7.73]
[1750760209815,146.6,143.69,143.58,7.73]
[1750760210015,1.5899,143.75,143.6,6.0864]
[1750760210208,5.05360672,143.74,143.61,1.5997]
[1750760210408,5.05360672,143.73,143.61,1.5997]
[1750760211502,5.05360672,143.73,143.62,6.3573]
[1750760212197,5.05360672,143.73,143.63,1.6092]
[1750760212398,146.6,143.74,143.63,1.6092]
[1750760213898,20.88,143.73,143.63,1.6092]
[1750760214106,146.6,143.74,143.63,1.6092]
[1750760214726,5.05905836,143.73,143.63,1.6092]
[1750760214927,5.05905836,143.72,143.63,1.6092]
[1750760216313,5.06177318,143.73,143.63,1.6092]
[1750760217304,5.06177318,143.72,143.63,1.6092]
[1750760217504,5.06177318,143.71,143.63,1.6092]
[1750760217717,5.06177318,143.73,143.63,1.6092]
[1750760217917,5.06177318,143.72,143.63,1.6092]
[1750760218228,5.06145829,143.71,143.63,1.6092]
[1750760218405,5.06145829,143.73,143.63,1.6092]
[1750760218604,5.06145829,143.72,143.63,1.6092]
[1750760218819,5.06145829,143.71,143.63,1.6092]
[1750760219019,5.06145829,143.73,143.63,1.6092]
[1750760219222,5.06145829,143.72,143.63,1.6092]
[1750760219407,5.06145829,143.73,143.63,1.6092]
[1750760219720,5.06145829,143.72,143.63,1.6092]
[1750760219902,5.06145829,143.73,143.63,1.6092]
[1750760220114,5.06145829,143.72,143.63,1.6092]
[1750760220308,5.06145829,143.73,143.64,6.0954]
[1750760220508,7.61126935,143.75,143.55,55.41353741]
[1750760220509,7.61126935,143.75,143.66,7.7318]
[1750760221107,7.61126935,143.75,143.68,1.5996]
[1750760221303,7.61126935,143.75,143.69,6.5762]
[1750760221630,5.0686853,143.78,143.69,6.5762]
[1750760221811,5.0686853,143.79,143.69,6.5762]
[1750760222012,5.0694411,143.79,143.69,6.5762]
[1750760222313,146.6,143.8,143.69,6.5762]
[1750760223923,146.6,143.8,143.7,1.6249]
[1750760224918,184.15216805,143.86,143.7,1.6249]
[1750760225118,10.12975629,143.85,143.7,1.6249]
[1750760225326,5.06753626,143.84,143.7,1.6249]
[1750760225525,5.06753626,143.83,143.7,1.6249]
[1750760225729,5.0667323,143.82,143.7,1.6249]
[1750760225935,5.0667323,143.81,143.7,1.6249]
[1750760226222,5.0667323,143.8,143.7,1.6249]